[Event "*** Titled Tuesday Blitz"]
[Site "Chess.com"]
[Date "2021.03.30"]
[Round "5"]
[White "shnitez"]
[Black "Kildepiotr"]
[Result "0-1"]
[WhiteElo "2477"]
[BlackElo "2690"]
[TimeControl "180+1"]
[EndTime "10:56:29 PDT"]
[Termination "Kildepiotr won on time"]

1. c4 {[%clk 0:03:00.9]} 1... g6 {[%clk 0:02:59.5]} 2. Nc3 {[%clk 0:02:59.4]}
2... Bg7 {[%clk 0:03:00]} 3. Nf3 {[%clk 0:02:58.4]} 3... d6 {[%clk 0:02:57.6]}
4. d4 {[%clk 0:02:56.7]} 4... Nd7 {[%clk 0:02:57.2]} 5. e4 {[%clk 0:02:55.4]}
5... e5 {[%clk 0:02:57.7]} 6. Be2 {[%clk 0:02:49.7]} 6... Ngf6 {[%clk
0:02:57.2]} 7. d5 {[%clk 0:02:45.9]} 7... Nc5 {[%clk 0:02:56.1]} 8. Qc2 {[%clk
0:02:42.2]} 8... a5 {[%clk 0:02:56.3]} 9. h3 {[%clk 0:02:31.3]} 9... O-O {[%clk
0:02:54.1]} 10. Bg5 {[%clk 0:02:30]} 10... h6 {[%clk 0:02:49.2]} 11. Be3 {[%clk
0:02:29.6]} 11... Ne8 {[%clk 0:02:48.8]} 12. Nd2 {[%clk 0:02:23.2]} 12... f5
{[%clk 0:02:47.7]} 13. f3 {[%clk 0:02:21.3]} 13... f4 {[%clk 0:02:43.7]} 14. Bf2
{[%clk 0:02:19.6]} 14... Bf6 {[%clk 0:02:44.1]} 15. O-O-O {[%clk 0:02:12.5]}
15... Bh4 {[%clk 0:02:43.5]} 16. Bg1 {[%clk 0:02:11.8]} 16... Bd7 {[%clk
0:02:39.4]} 17. b3 {[%clk 0:02:06.2]} 17... b6 {[%clk 0:02:35.8]} 18. Kb1 {[%clk
0:02:05.8]} 18... Nf6 {[%clk 0:02:35.1]} 19. Ka1 {[%clk 0:01:58.6]} 19... Nh5
{[%clk 0:02:34.4]} 20. Nf1 {[%clk 0:01:43.7]} 20... Qg5 {[%clk 0:02:19.7]} 21.
Bd3 {[%clk 0:01:39.1]} 21... a4 {[%clk 0:01:59]} 22. b4 {[%clk 0:01:34.9]} 22...
Nb3+ {[%clk 0:01:58.3]} 23. Kb1 {[%clk 0:01:28.3]} 23... Nd4 {[%clk 0:01:56.8]}
24. Bxd4 {[%clk 0:01:25.7]} 24... exd4 {[%clk 0:01:57.7]} 25. Nb5 {[%clk
0:01:22]} 25... Bxb5 {[%clk 0:01:54]} 26. cxb5 {[%clk 0:01:22.9]} 26... Qe7
{[%clk 0:01:46.5]} 27. a3 {[%clk 0:01:20.9]} 27... Nf6 {[%clk 0:01:41.7]} 28.
Nd2 {[%clk 0:01:19.6]} 28... Bf2 {[%clk 0:01:34.9]} 29. Nc4 {[%clk 0:01:11.5]}
29... Be3 {[%clk 0:01:34.1]} 30. Nb2 {[%clk 0:01:11.7]} 30... Nd7 {[%clk
0:01:29.4]} 31. Ka2 {[%clk 0:01:07.1]} 31... Ne5 {[%clk 0:01:28.7]} 32. Ra1
{[%clk 0:00:47.6]} 32... Ra7 {[%clk 0:01:25.7]} 33. Kb1 {[%clk 0:00:38.4]} 33...
g5 {[%clk 0:01:22.3]} 34. Ka2 {[%clk 0:00:33.9]} 34... h5 {[%clk 0:01:21.3]} 35.
Nc4 {[%clk 0:00:28.9]} 35... Kg7 {[%clk 0:01:03]} 36. Nxe5 {[%clk 0:00:27.2]}
36... Qxe5 {[%clk 0:01:03.9]} 37. Qe2 {[%clk 0:00:24.7]} 37... Kf7 {[%clk
0:00:48.7]} 38. Rab1 {[%clk 0:00:24.2]} 38... Ke7 {[%clk 0:00:47.8]} 39. Rb2
{[%clk 0:00:24.3]} 39... Rg8 {[%clk 0:00:40]} 40. Rc2 {[%clk 0:00:24]} 40... Kd8
{[%clk 0:00:38.2]} 41. Rc6 {[%clk 0:00:21.9]} 41... Qg7 {[%clk 0:00:33.3]} 42.
Qc2 {[%clk 0:00:19.8]} 42... Ra8 {[%clk 0:00:31.6]} 43. Kb2 {[%clk 0:00:18.3]}
43... Rc8 {[%clk 0:00:26.6]} 44. Ka2 {[%clk 0:00:18.3]} 44... g4 {[%clk
0:00:26.3]} 45. hxg4 {[%clk 0:00:18]} 45... hxg4 {[%clk 0:00:27.2]} 46. e5
{[%clk 0:00:15]} 46... gxf3 {[%clk 0:00:19]} 47. gxf3 {[%clk 0:00:14]} 47...
dxe5 {[%clk 0:00:16.9]} 48. Rh7 {[%clk 0:00:11.4]} 48... Qg2 {[%clk 0:00:15.6]}
49. Bf5 {[%clk 0:00:10.4]} 49... Qxc2+ {[%clk 0:00:14.9]} 50. Rxc2 {[%clk
0:00:11.3]} 50... d3 {[%clk 0:00:13.6]} 51. Bxd3 {[%clk 0:00:10.9]} 51... Bd4
{[%clk 0:00:11]} 52. Rch2 {[%clk 0:00:05.8]} 52... Rg1 {[%clk 0:00:10.6]} 53.
Rh1 {[%clk 0:00:04.4]} 53... Rxh1 {[%clk 0:00:09.9]} 54. Rxh1 {[%clk 0:00:03.5]}
54... Ke7 {[%clk 0:00:10.6]} 55. Rh7+ {[%clk 0:00:03.1]} 55... Kd6 {[%clk
0:00:10.9]} 56. Rh6+ {[%clk 0:00:01.9]} 56... Kxd5 {[%clk 0:00:10]} 57. Be4+
{[%clk 0:00:02.4]} 57... Kc4 {[%clk 0:00:10]} 58. Rc6+ {[%clk 0:00:02.3]} 58...
Kxb5 {[%clk 0:00:10.2]} 0-1

[Event "*** Titled Tuesday Blitz"]
[Site "Chess.com"]
[Date "2021.03.30"]
[Round "5"]
[White "GianmarcoVaR"]
[Black "Danny_Billiards"]
[Result "0-1"]
[WhiteElo "2751"]
[BlackElo "2586"]
[TimeControl "180+1"]
[EndTime "10:56:31 PDT"]
[Termination "Danny_Billiards won on time"]

1. Nf3 {[%clk 0:02:58.6]} 1... c5 {[%clk 0:02:59.2]} 2. g3 {[%clk 0:02:53.6]}
2... Nc6 {[%clk 0:02:57.5]} 3. Bg2 {[%clk 0:02:53.7]} 3... e5 {[%clk 0:02:58]}
4. O-O {[%clk 0:02:53.1]} 4... d5 {[%clk 0:02:57.8]} 5. d3 {[%clk 0:02:51.7]}
5... Nf6 {[%clk 0:02:57.5]} 6. e4 {[%clk 0:02:51.9]} 6... Be7 {[%clk 0:02:57.3]}
7. Nc3 {[%clk 0:02:51.5]} 7... Be6 {[%clk 0:02:45.8]} 8. Ng5 {[%clk 0:02:13.2]}
8... Bg4 {[%clk 0:02:44.9]} 9. f3 {[%clk 0:02:13.7]} 9... Bh5 {[%clk 0:02:30.7]}
10. g4 {[%clk 0:02:08.2]} 10... Bg6 {[%clk 0:02:28.2]} 11. Nh3 {[%clk
0:02:08.5]} 11... dxe4 {[%clk 0:02:18.1]} 12. fxe4 {[%clk 0:02:04.6]} 12... c4
{[%clk 0:02:11.4]} 13. Be3 {[%clk 0:01:36.8]} 13... cxd3 {[%clk 0:02:06.9]} 14.
cxd3 {[%clk 0:01:37.7]} 14... h6 {[%clk 0:02:06]} 15. Nf2 {[%clk 0:01:27.9]}
15... Nd7 {[%clk 0:01:51.7]} 16. Nh1 {[%clk 0:01:26.4]} 16... Bc5 {[%clk
0:01:50.5]} 17. Qe2 {[%clk 0:01:24.6]} 17... Bxe3+ {[%clk 0:01:43.6]} 18. Qxe3
{[%clk 0:01:23.6]} 18... Qb6 {[%clk 0:01:44.5]} 19. Qxb6 {[%clk 0:01:21.4]}
19... Nxb6 {[%clk 0:01:45.4]} 20. Ng3 {[%clk 0:01:18.9]} 20... f6 {[%clk
0:01:42.8]} 21. Nf5 {[%clk 0:01:17.9]} 21... Bxf5 {[%clk 0:01:42.9]} 22. exf5
{[%clk 0:01:17.8]} 22... O-O-O {[%clk 0:01:41.1]} 23. Be4 {[%clk 0:01:05.3]}
23... Nd4 {[%clk 0:01:36.9]} 24. Kg2 {[%clk 0:01:04.9]} 24... Kb8 {[%clk
0:01:33.7]} 25. h4 {[%clk 0:01:04.4]} 25... Nd7 {[%clk 0:01:31.6]} 26. b4 {[%clk
0:00:59.5]} 26... Nc2 {[%clk 0:01:31.7]} 27. Rab1 {[%clk 0:00:42.6]} 27... Ne3+
{[%clk 0:01:31.5]} 28. Kf2 {[%clk 0:00:42.8]} 28... Nxf1 {[%clk 0:01:32.4]} 29.
Kxf1 {[%clk 0:00:43]} 29... Nb6 {[%clk 0:01:33.2]} 30. Ke2 {[%clk 0:00:41.4]}
30... Rd4 {[%clk 0:01:30.7]} 31. Kd2 {[%clk 0:00:36.9]} 31... Rc8 {[%clk
0:01:30]} 32. Rb3 {[%clk 0:00:32.6]} 32... Nc4+ {[%clk 0:01:29.8]} 33. Ke2
{[%clk 0:00:31.9]} 33... Nd6 {[%clk 0:01:24.8]} 34. Bf3 {[%clk 0:00:30.5]} 34...
a6 {[%clk 0:01:20.9]} 35. h5 {[%clk 0:00:25.1]} 35... Nb5 {[%clk 0:01:20.7]} 36.
Ne4 {[%clk 0:00:22.8]} 36... Rc2+ {[%clk 0:01:18.2]} 37. Ke3 {[%clk 0:00:22.1]}
37... Rxa2 {[%clk 0:01:13.2]} 38. Nc5 {[%clk 0:00:22.4]} 38... Rf4 {[%clk
0:01:02.4]} 39. Ne6 {[%clk 0:00:16.1]} 39... Nd4 {[%clk 0:00:51.2]} 40. Nxf4
{[%clk 0:00:16.5]} 40... Nxb3 {[%clk 0:00:51.2]} 41. Ne6 {[%clk 0:00:17.1]}
41... Nd4 {[%clk 0:00:47.5]} 42. Nxg7 {[%clk 0:00:16.7]} 42... Rh2 {[%clk
0:00:27.8]} 43. Bd5 {[%clk 0:00:14.4]} 43... Rh3+ {[%clk 0:00:26.8]} 44. Kf2
{[%clk 0:00:11.5]} 44... Rxd3 {[%clk 0:00:25.8]} 45. Ne8 {[%clk 0:00:12]} 45...
Nc2 {[%clk 0:00:19.2]} 46. Nxf6 {[%clk 0:00:06.2]} 46... Nxb4 {[%clk 0:00:19.6]}
47. Be6 {[%clk 0:00:05.4]} 47... a5 {[%clk 0:00:16.9]} 48. g5 {[%clk 0:00:05.5]}
48... hxg5 {[%clk 0:00:16]} 49. h6 {[%clk 0:00:05.9]} 49... Rh3 {[%clk
0:00:16.3]} 50. h7 {[%clk 0:00:06.5]} 50... Nd3+ {[%clk 0:00:15.3]} 51. Kf1
{[%clk 0:00:01.6]} 51... Nf4 {[%clk 0:00:12.6]} 52. Bf7 {[%clk 0:00:01.8]} 52...
a4 {[%clk 0:00:10.9]} 53. Bh5 {[%clk 0:00:01.9]} 53... Nxh5 {[%clk 0:00:11.2]}
54. h8=Q+ {[%clk 0:00:01.8]} 54... Ka7 {[%clk 0:00:12.1]} 55. Nxh5 {[%clk
0:00:01]} 55... Rh1+ {[%clk 0:00:13]} 0-1

[Event "*** Titled Tuesday Blitz"]
[Site "Chess.com"]
[Date "2021.03.30"]
[Round "5"]
[White "DFeco"]
[Black "RamyresCoelho"]
[Result "1-0"]
[WhiteElo "2321"]
[BlackElo "2161"]
[TimeControl "180+1"]
[EndTime "10:56:32 PDT"]
[Termination "DFeco won by checkmate"]

1. c4 {[%clk 0:03:00.9]} 1... Nf6 {[%clk 0:02:56.1]} 2. g3 {[%clk 0:03:00.8]}
2... g6 {[%clk 0:02:56.2]} 3. Bg2 {[%clk 0:03:00.8]} 3... Bg7 {[%clk 0:02:57.1]}
4. Nc3 {[%clk 0:03:01.3]} 4... O-O {[%clk 0:02:58]} 5. e4 {[%clk 0:03:01.2]}
5... d6 {[%clk 0:02:58.9]} 6. Nge2 {[%clk 0:03:01.4]} 6... e5 {[%clk 0:02:59]}
7. O-O {[%clk 0:03:01.3]} 7... Nc6 {[%clk 0:02:58.4]} 8. d3 {[%clk 0:03:01.2]}
8... h6 {[%clk 0:02:57.8]} 9. h3 {[%clk 0:03:00.5]} 9... Be6 {[%clk 0:02:57.2]}
10. Nd5 {[%clk 0:02:58.2]} 10... Nd4 {[%clk 0:02:52.5]} 11. Nxd4 {[%clk
0:02:55.7]} 11... exd4 {[%clk 0:02:53.4]} 12. f4 {[%clk 0:02:39.1]} 12... Nxd5
{[%clk 0:02:51.7]} 13. cxd5 {[%clk 0:02:37.3]} 13... Bd7 {[%clk 0:02:48.2]} 14.
Bd2 {[%clk 0:02:33.1]} 14... f5 {[%clk 0:02:46.7]} 15. Re1 {[%clk 0:02:25]}
15... Re8 {[%clk 0:02:41.8]} 16. Kh2 {[%clk 0:02:15]} 16... Qf6 {[%clk
0:02:38.1]} 17. Qf3 {[%clk 0:02:00.9]} 17... c5 {[%clk 0:02:33.1]} 18. Re2
{[%clk 0:01:39.1]} 18... fxe4 {[%clk 0:02:30.7]} 19. dxe4 {[%clk 0:01:36.9]}
19... Re7 {[%clk 0:02:17.2]} 20. Qd3 {[%clk 0:01:10.9]} 20... a6 {[%clk
0:02:03.3]} 21. a4 {[%clk 0:01:03]} 21... Rae8 {[%clk 0:02:02.5]} 22. b3 {[%clk
0:00:58.9]} 22... b5 {[%clk 0:01:57.9]} 23. Ba5 {[%clk 0:00:36.1]} 23... c4
{[%clk 0:01:46.5]} 24. bxc4 {[%clk 0:00:30.9]} 24... bxc4 {[%clk 0:01:47.4]} 25.
Qxc4 {[%clk 0:00:29.4]} 25... d3 {[%clk 0:01:47.5]} 26. Ree1 {[%clk 0:00:29.6]}
26... Rc8 {[%clk 0:01:11.3]} 27. Qxd3 {[%clk 0:00:27.8]} 27... Qf8 {[%clk
0:01:08.9]} 28. Rac1 {[%clk 0:00:26.3]} 28... Bxa4 {[%clk 0:01:03.7]} 29. Qxa6
{[%clk 0:00:24.1]} 29... Rxc1 {[%clk 0:00:57.4]} 30. Rxc1 {[%clk 0:00:24]} 30...
Re8 {[%clk 0:00:47.7]} 31. Bc7 {[%clk 0:00:21.6]} 31... Ra8 {[%clk 0:00:44.3]}
32. Qxd6 {[%clk 0:00:20.6]} 32... Qc8 {[%clk 0:00:43.7]} 33. Qe6+ {[%clk
0:00:19.6]} 33... Qxe6 {[%clk 0:00:42.4]} 34. dxe6 {[%clk 0:00:19.7]} 34... Bb2
{[%clk 0:00:43]} 35. Rb1 {[%clk 0:00:18.7]} 35... Bf6 {[%clk 0:00:41.2]} 36.
Rb8+ {[%clk 0:00:18.1]} 36... Rxb8 {[%clk 0:00:41.5]} 37. Bxb8 {[%clk
0:00:18.3]} 37... Bb3 {[%clk 0:00:42.4]} 38. f5 {[%clk 0:00:18]} 38... gxf5
{[%clk 0:00:43.2]} 39. exf5 {[%clk 0:00:17.9]} 39... Kf8 {[%clk 0:00:39.3]} 40.
Bd6+ {[%clk 0:00:17.7]} 40... Kg7 {[%clk 0:00:39.2]} 41. g4 {[%clk 0:00:16.6]}
41... Ba4 {[%clk 0:00:37.1]} 42. Kg3 {[%clk 0:00:16.4]} 42... Be8 {[%clk
0:00:35.3]} 43. Bb7 {[%clk 0:00:16.3]} 43... Bb2 {[%clk 0:00:33]} 44. Bc8 {[%clk
0:00:16.3]} 44... Bc3 {[%clk 0:00:28.5]} 45. Bd7 {[%clk 0:00:16.1]} 45... Be1+
{[%clk 0:00:28.4]} 46. Kf3 {[%clk 0:00:16.3]} 46... Bxd7 {[%clk 0:00:26.3]} 47.
exd7 {[%clk 0:00:16.4]} 47... Ba5 {[%clk 0:00:27]} 48. Be7 {[%clk 0:00:17]}
48... Kf7 {[%clk 0:00:27.5]} 49. d8=Q {[%clk 0:00:17.1]} 49... Bxd8 {[%clk
0:00:28.4]} 50. Bxd8 {[%clk 0:00:17.4]} 50... h5 {[%clk 0:00:29.3]} 51. Bh4
{[%clk 0:00:17.3]} 51... hxg4+ {[%clk 0:00:30.2]} 52. hxg4 {[%clk 0:00:17.5]}
52... Kg7 {[%clk 0:00:30.4]} 53. g5 {[%clk 0:00:18]} 53... Kh7 {[%clk
0:00:30.5]} 54. Kf4 {[%clk 0:00:18.4]} 54... Kg7 {[%clk 0:00:30.8]} 55. Ke5
{[%clk 0:00:18.9]} 55... Kh7 {[%clk 0:00:31.7]} 56. g6+ {[%clk 0:00:19.3]} 56...
Kg7 {[%clk 0:00:31.8]} 57. Bf6+ {[%clk 0:00:19.9]} 57... Kf8 {[%clk 0:00:32.7]}
58. Ke6 {[%clk 0:00:20.5]} 58... Ke8 {[%clk 0:00:32.2]} 59. Bg5 {[%clk
0:00:20.8]} 59... Kf8 {[%clk 0:00:32.2]} 60. f6 {[%clk 0:00:21.5]} 60... Kg8
{[%clk 0:00:30.6]} 61. Ke7 {[%clk 0:00:21.1]} 61... Kh8 {[%clk 0:00:30.3]} 62.
Bf4 {[%clk 0:00:20.5]} 62... Kg8 {[%clk 0:00:30.4]} 63. f7+ {[%clk 0:00:20.7]}
63... Kg7 {[%clk 0:00:29.9]} 64. f8=Q+ {[%clk 0:00:20.6]} 64... Kxg6 {[%clk
0:00:30.8]} 65. Qf6+ {[%clk 0:00:20.7]} 65... Kh7 {[%clk 0:00:30.8]} 66. Qf7+
{[%clk 0:00:20.5]} 66... Kh8 {[%clk 0:00:29.8]} 67. Be5# {[%clk 0:00:21]} 1-0

[Event "*** Titled Tuesday Blitz"]
[Site "Chess.com"]
[Date "2021.03.30"]
[Round "5"]
[White "PotapovaM"]
[Black "Witik"]
[Result "0-1"]
[WhiteElo "2492"]
[BlackElo "2710"]
[TimeControl "180+1"]
[EndTime "10:56:35 PDT"]
[Termination "Witik won by resignation"]

1. d4 {[%clk 0:02:59.2]} 1... d5 {[%clk 0:02:57.6]} 2. c4 {[%clk 0:02:59.6]}
2... e6 {[%clk 0:02:57.7]} 3. Nf3 {[%clk 0:03:00]} 3... c6 {[%clk 0:02:57.4]} 4.
g3 {[%clk 0:02:59]} 4... Bd6 {[%clk 0:02:57.2]} 5. Bg2 {[%clk 0:02:59.1]} 5...
f5 {[%clk 0:02:57.2]} 6. O-O {[%clk 0:02:57.7]} 6... Nf6 {[%clk 0:02:56.7]} 7.
b3 {[%clk 0:02:56.9]} 7... Qe7 {[%clk 0:02:56.6]} 8. Bb2 {[%clk 0:02:57.2]} 8...
O-O {[%clk 0:02:55.9]} 9. Qc1 {[%clk 0:02:57.6]} 9... b6 {[%clk 0:02:51.7]} 10.
Ba3 {[%clk 0:02:56]} 10... Bb7 {[%clk 0:02:43.5]} 11. Bxd6 {[%clk 0:02:55.3]}
11... Qxd6 {[%clk 0:02:44.4]} 12. Qa3 {[%clk 0:02:55.7]} 12... Qxa3 {[%clk
0:02:39.6]} 13. Nxa3 {[%clk 0:02:56.6]} 13... Nbd7 {[%clk 0:02:29.1]} 14. Rac1
{[%clk 0:02:48.5]} 14... Rac8 {[%clk 0:02:19.3]} 15. e3 {[%clk 0:02:43]} 15...
Kf7 {[%clk 0:02:15.1]} 16. Rc2 {[%clk 0:02:35.3]} 16... Ke7 {[%clk 0:02:02.2]}
17. Rfc1 {[%clk 0:02:34.1]} 17... Ne4 {[%clk 0:01:53.5]} 18. Kf1 {[%clk
0:02:29.5]} 18... Rc7 {[%clk 0:01:27.8]} 19. cxd5 {[%clk 0:02:15.9]} 19... exd5
{[%clk 0:01:25.9]} 20. Nb5 {[%clk 0:02:16.5]} 20... Ba6 {[%clk 0:01:24.3]} 21.
a4 {[%clk 0:02:10.5]} 21... Nd6 {[%clk 0:01:04.1]} 22. Ke1 {[%clk 0:01:37.7]}
22... Nxb5 {[%clk 0:01:03.7]} 23. axb5 {[%clk 0:01:31.2]} 23... Bxb5 {[%clk
0:01:03.3]} 24. Ng5 {[%clk 0:01:26]} 24... Nf6 {[%clk 0:00:53.8]} 25. Nh3 {[%clk
0:01:21.5]} 25... a5 {[%clk 0:00:43.7]} 26. Nf4 {[%clk 0:01:21.3]} 26... Kd6
{[%clk 0:00:43.3]} 27. h4 {[%clk 0:01:21.4]} 27... Rfc8 {[%clk 0:00:39.8]} 28.
h5 {[%clk 0:01:08.7]} 28... c5 {[%clk 0:00:38.4]} 29. Rd1 {[%clk 0:00:47.3]}
29... c4 {[%clk 0:00:38.1]} 30. bxc4 {[%clk 0:00:43.2]} 30... Bxc4 {[%clk
0:00:38.1]} 31. Bh3 {[%clk 0:00:37.2]} 31... Bb3 {[%clk 0:00:25.9]} 32. Rxc7
{[%clk 0:00:36.7]} 32... Rxc7 {[%clk 0:00:26.8]} 33. Rb1 {[%clk 0:00:37]} 33...
a4 {[%clk 0:00:25.4]} 34. Bxf5 {[%clk 0:00:36.8]} 34... b5 {[%clk 0:00:20]} 35.
Ne6 {[%clk 0:00:35.6]} 35... Ra7 {[%clk 0:00:15.5]} 36. Nc5 {[%clk 0:00:35.8]}
36... Bc4 {[%clk 0:00:15.5]} 37. Kd2 {[%clk 0:00:24.5]} 37... h6 {[%clk
0:00:13.7]} 38. Kc3 {[%clk 0:00:24.3]} 38... Nxh5 {[%clk 0:00:12.9]} 39. Kb4
{[%clk 0:00:21.2]} 39... Nf6 {[%clk 0:00:12.1]} 40. f3 {[%clk 0:00:16.8]} 40...
Ne8 {[%clk 0:00:09.9]} 41. e4 {[%clk 0:00:14.7]} 41... dxe4 {[%clk 0:00:08.1]}
42. fxe4 {[%clk 0:00:15.6]} 42... Nc7 {[%clk 0:00:08.6]} 43. e5+ {[%clk
0:00:14]} 43... Ke7 {[%clk 0:00:08.9]} 44. Be4 {[%clk 0:00:10.2]} 44... a3
{[%clk 0:00:08.4]} 45. d5 {[%clk 0:00:09.5]} 45... Bxd5 {[%clk 0:00:08.5]} 46.
Bd3 {[%clk 0:00:05.5]} 46... a2 {[%clk 0:00:08.6]} 47. Ra1 {[%clk 0:00:06]}
47... Ne6 {[%clk 0:00:06.4]} 48. Nxe6 {[%clk 0:00:03.1]} 48... Kxe6 {[%clk
0:00:06.6]} 49. Bxb5 {[%clk 0:00:02.4]} 49... Kxe5 {[%clk 0:00:06.9]} 50. Kc3
{[%clk 0:00:02.6]} 50... Kf5 {[%clk 0:00:05.3]} 51. Be2 {[%clk 0:00:01.6]} 51...
Kg5 {[%clk 0:00:04.7]} 52. Kd2 {[%clk 0:00:02.5]} 52... Rb7 {[%clk 0:00:04]} 53.
Kc3 {[%clk 0:00:02.2]} 53... Rb1 {[%clk 0:00:03.5]} 0-1

[Event "*** Titled Tuesday Blitz"]
[Site "Chess.com"]
[Date "2021.03.30"]
[Round "5"]
[White "Vanina1989"]
[Black "gilbert_gm"]
[Result "1-0"]
[WhiteElo "2770"]
[BlackElo "2565"]
[TimeControl "180+1"]
[EndTime "10:56:36 PDT"]
[Termination "Vanina1989 won by resignation"]

1. d4 {[%clk 0:03:00.9]} 1... d5 {[%clk 0:02:59.3]} 2. c4 {[%clk 0:02:59.6]}
2... c6 {[%clk 0:02:59.6]} 3. Nf3 {[%clk 0:02:58.2]} 3... Nf6 {[%clk 0:03:00]}
4. g3 {[%clk 0:02:56.2]} 4... Bg4 {[%clk 0:02:57.1]} 5. Bg2 {[%clk 0:02:55.5]}
5... Nbd7 {[%clk 0:02:54.6]} 6. O-O {[%clk 0:02:55.1]} 6... Bxf3 {[%clk
0:02:50.3]} 7. Bxf3 {[%clk 0:02:53.8]} 7... e6 {[%clk 0:02:50.9]} 8. b3 {[%clk
0:02:52.6]} 8... Bd6 {[%clk 0:02:47.7]} 9. Bb2 {[%clk 0:02:52.4]} 9... O-O
{[%clk 0:02:45.4]} 10. Bg2 {[%clk 0:02:52.7]} 10... Qe7 {[%clk 0:02:42]} 11. Nd2
{[%clk 0:02:52.2]} 11... Ba3 {[%clk 0:02:28.9]} 12. Qc2 {[%clk 0:02:48.6]} 12...
a5 {[%clk 0:02:26]} 13. e3 {[%clk 0:02:31.9]} 13... a4 {[%clk 0:02:18]} 14. bxa4
{[%clk 0:01:51.5]} 14... Qb4 {[%clk 0:02:09.7]} 15. Rfb1 {[%clk 0:01:37.5]}
15... Rfb8 {[%clk 0:01:44]} 16. c5 {[%clk 0:01:13.2]} 16... Qxa4 {[%clk
0:01:10.1]} 17. Qxa4 {[%clk 0:01:07.7]} 17... Rxa4 {[%clk 0:01:11]} 18. f4
{[%clk 0:01:03.8]} 18... b5 {[%clk 0:00:50.8]} 19. Bf3 {[%clk 0:00:34.7]} 19...
Bxb2 {[%clk 0:00:34.5]} 20. Rxb2 {[%clk 0:00:34.5]} 20... Rba8 {[%clk
0:00:32.8]} 21. Bd1 {[%clk 0:00:34.4]} 21... Ra3 {[%clk 0:00:33]} 22. Kf2 {[%clk
0:00:34.3]} 22... Ne8 {[%clk 0:00:21]} 23. Nb1 {[%clk 0:00:32.9]} 23... R3a5
{[%clk 0:00:19]} 24. Nc3 {[%clk 0:00:32.6]} 24... Ra3 {[%clk 0:00:17.3]} 25. Nb1
{[%clk 0:00:31.8]} 25... R3a5 {[%clk 0:00:17.4]} 26. Nc3 {[%clk 0:00:25.6]}
26... Ra3 {[%clk 0:00:17.5]} 27. Bb3 {[%clk 0:00:24.8]} 27... f5 {[%clk
0:00:15]} 28. Nb1 {[%clk 0:00:24.5]} 28... R3a5 {[%clk 0:00:14.9]} 29. Bc2
{[%clk 0:00:20.5]} 29... Nef6 {[%clk 0:00:13.6]} 30. Nd2 {[%clk 0:00:19.7]}
30... Ra3 {[%clk 0:00:12.5]} 31. h3 {[%clk 0:00:16.9]} 31... Kf7 {[%clk
0:00:11.6]} 32. Nf3 {[%clk 0:00:16.7]} 32... Ne4+ {[%clk 0:00:08.9]} 33. Bxe4
{[%clk 0:00:16.3]} 33... fxe4 {[%clk 0:00:09.1]} 34. Ng5+ {[%clk 0:00:16.5]}
34... Ke7 {[%clk 0:00:07.4]} 35. Nxh7 {[%clk 0:00:16.9]} 35... Rd3 {[%clk
0:00:04.9]} 36. Ng5 {[%clk 0:00:15.5]} 36... Raa3 {[%clk 0:00:05.2]} 37. Re2
{[%clk 0:00:15.8]} 37... b4 {[%clk 0:00:04.4]} 38. Rb1 {[%clk 0:00:15.7]} 38...
Ra4 {[%clk 0:00:03.4]} 39. Rbb2 {[%clk 0:00:15.5]} 39... Nb8 {[%clk 0:00:03.1]}
40. g4 {[%clk 0:00:15.4]} 40... Nd7 {[%clk 0:00:03.6]} 41. h4 {[%clk 0:00:14.9]}
41... Nf6 {[%clk 0:00:04]} 42. Kg3 {[%clk 0:00:14.7]} 42... Raa3 {[%clk
0:00:04.1]} 43. f5 {[%clk 0:00:14.5]} 43... Rxe3+ {[%clk 0:00:03.9]} 44. Rxe3
{[%clk 0:00:14.7]} 44... Rxe3+ {[%clk 0:00:04.8]} 45. Kf4 {[%clk 0:00:15.3]}
45... Rd3 {[%clk 0:00:05.3]} 46. Rxb4 {[%clk 0:00:15.2]} 46... exf5 {[%clk
0:00:05]} 47. gxf5 {[%clk 0:00:15.1]} 47... Nh5+ {[%clk 0:00:05.4]} 48. Ke5
{[%clk 0:00:15.5]} 48... Nf6 {[%clk 0:00:05.1]} 49. Rb7+ {[%clk 0:00:15.6]}
49... Nd7+ {[%clk 0:00:05.5]} 50. Kf4 {[%clk 0:00:15.4]} 50... Rxd4 {[%clk
0:00:05.8]} 51. Ne6 {[%clk 0:00:15]} 51... Rc4 {[%clk 0:00:05.7]} 52. Nxg7
{[%clk 0:00:15.1]} 52... Kd8 {[%clk 0:00:04.8]} 53. Ne6+ {[%clk 0:00:13.7]}
53... Kc8 {[%clk 0:00:05.2]} 54. Rc7+ {[%clk 0:00:13.8]} 54... Kb8 {[%clk
0:00:04.8]} 55. Rxd7 {[%clk 0:00:13.9]} 55... e3+ {[%clk 0:00:04.6]} 56. Kxe3
{[%clk 0:00:13.8]} 56... Rxh4 {[%clk 0:00:05.5]} 57. Kd3 {[%clk 0:00:12.6]}
57... Kc8 {[%clk 0:00:04.3]} 58. Rd6 {[%clk 0:00:12.6]} 58... Kb8 {[%clk
0:00:05.2]} 59. Nd4 {[%clk 0:00:12.7]} 1-0